[Event "20th Rochefort Chess Festival - Masters"]
[Site "Rochefort, France"]
[Date "2022.02.12"]
[Round "1.4"]
[White "Lapeyre, Pierre"]
[Black "Laurent-Paoli, Pierre"]
[Result "1/2-1/2"]
[TimeControl "1h30 + [30'']"]
[WhiteElo "1995"]
[BlackElo "2483"]

1. d4 {[%clk 01:25:17]} {[%emt 00:05:41]} Nf6 {[%clk 01:30:31]} {[%emt
00:00:30]} 2. Bf4 {[%clk 01:25:06]} {[%emt 00:00:41]} d6 {[%clk 01:29:55]}
{[%emt 00:01:05]} 3. Nc3 {[%clk 01:25:21]} {[%emt 00:00:15]} Nbd7 {[%clk
01:30:18]} {[%emt 00:00:07]} 4. Nf3 {[%clk 01:25:41]} {[%emt 00:00:10]} c5
{[%clk 01:30:42]} {[%emt 00:00:06]} 5. d5 {[%clk 01:24:33]} {[%emt 00:01:38]}
b5 {[%clk 01:31:05]} {[%emt 00:00:07]} 6. e3 {[%clk 01:20:35]} {[%emt
00:04:28]} b4 {[%clk 01:28:07]} {[%emt 00:03:29]} 7. Nb1 {[%clk 01:20:47]}
{[%emt 00:00:17]} g6 {[%clk 01:25:59]} {[%emt 00:02:38]} 8. c4 {[%clk
01:16:37]} {[%emt 00:04:40]} Bg7 {[%clk 01:25:44]} {[%emt 00:00:46]} 9. Qc1
{[%clk 01:16:56]} {[%emt 00:00:11]} O-O {[%clk 01:24:48]} {[%emt 00:01:26]} 10.
Nbd2 {[%clk 01:16:40]} {[%emt 00:00:46]} a5 {[%clk 01:23:28]} {[%emt 00:01:51]}
11. h3 {[%clk 01:16:33]} {[%emt 00:00:37]} a4 {[%clk 01:22:36]} {[%emt
00:01:22]} 12. Rb1 {[%clk 01:17:00]} {[%emt 00:00:02]} Nb6 {[%clk 01:17:44]}
{[%emt 00:05:22]} 13. Be2 {[%clk 01:15:05]} {[%emt 00:02:25]} a3 {[%clk
01:14:05]} {[%emt 00:04:10]} 14. b3 {[%clk 01:15:24]} {[%emt 00:00:10]} Bf5
{[%clk 01:14:31]} {[%emt 00:00:04]} 15. Ra1 {[%clk 01:14:35]} {[%emt 00:01:19]}
Ne4 {[%clk 01:08:11]} {[%emt 00:06:50]} 16. Nxe4 {[%clk 01:14:35]} {[%emt
00:00:30]} Bxe4 {[%clk 01:08:35]} {[%emt 00:00:06]} 17. O-O {[%clk 01:14:48]}
{[%emt 00:00:17]} Ra7 {[%clk 01:03:11]} {[%emt 00:05:54]} 18. Nd2 {[%clk
01:13:52]} {[%emt 00:01:26]} Bf5 {[%clk 01:03:37]} {[%emt 00:00:04]} 19. e4
{[%clk 01:14:05]} {[%emt 00:00:17]} Bc8 {[%clk 01:04:03]} {[%emt 00:00:04]} 20.
Rb1 {[%clk 01:12:00]} {[%emt 00:02:35]} e5 {[%clk 01:03:15]} {[%emt 00:01:18]}
21. dxe6 {[%clk 01:10:29]} {[%emt 00:02:01]} fxe6 {[%clk 01:03:30]} {[%emt
00:00:15]} 22. Nf3 {[%clk 01:10:40]} {[%emt 00:00:19]} Bb2 {[%clk 01:00:09]}
{[%emt 00:03:51]} 23. Qd2 {[%clk 01:06:09]} {[%emt 00:05:01]} Rd7 {[%clk
00:58:39]} {[%emt 00:02:00]} 24. Bh6 {[%clk 01:04:04]} {[%emt 00:02:35]} Bc3
{[%clk 00:57:13]} {[%emt 00:01:56]} 25. Qe3 {[%clk 00:57:23]} {[%emt 00:07:11]}
Re8 {[%clk 00:56:58]} {[%emt 00:00:46]} 26. Rbd1 {[%clk 00:57:47]} {[%emt
00:00:06]} e5 {[%clk 00:56:28]} {[%emt 00:01:00]} 27. Bg5 {[%clk 00:54:47]}
{[%emt 00:03:29]} Qc7 {[%clk 00:56:38]} {[%emt 00:00:20]} 28. Nh2 {[%clk
00:55:14]} {[%emt 00:00:02]} Rf7 {[%clk 00:54:41]} {[%emt 00:02:28]} 29. Ng4
{[%clk 00:51:39]} {[%emt 00:04:05]} Bxg4 {[%clk 00:54:55]} {[%emt 00:00:17]} 30.
Bxg4 {[%clk 00:51:47]} {[%emt 00:00:21]} Nd7 {[%clk 00:53:00]} {[%emt
00:02:25]} 31. Bxd7 {[%clk 00:46:52]} {[%emt 00:05:26]} Qxd7 {[%clk 00:52:24]}
{[%emt 00:01:06]} 32. Qg3 {[%clk 00:47:20]} {[%emt 00:00:02]} Bd4 {[%clk
00:51:03]} {[%emt 00:01:51]} 33. Rd2 {[%clk 00:47:08]} {[%emt 00:00:41]} Qe6
{[%clk 00:41:23]} {[%emt 00:10:10]} 34. Qg4 {[%clk 00:44:05]} {[%emt 00:03:33]}
Qxg4 {[%clk 00:35:26]} {[%emt 00:06:27]} 35. hxg4 {[%clk 00:44:32]} {[%emt
00:00:02]} Kg7 {[%clk 00:35:37]} {[%emt 00:00:20]} 36. Re2 {[%clk 00:42:24]}
{[%emt 00:02:38]} h5 {[%clk 00:34:05]} {[%emt 00:02:02]} 37. gxh5 {[%clk
00:38:12]} {[%emt 00:04:42]} gxh5 {[%clk 00:34:30]} {[%emt 00:00:05]} 38. Kh2
{[%clk 00:36:58]} {[%emt 00:01:43]} Kg6 {[%clk 00:32:34]} {[%emt 00:02:28]} 39.
Bh4 {[%clk 00:35:16]} {[%emt 00:02:11]} Ref8 {[%clk 00:23:45]} {[%emt
00:09:19]} 40. f3 {[%clk 00:35:44]} {[%emt 00:00:02]} Kh6 {[%clk 00:23:34]}
{[%emt 00:00:41]} 41. Kh3 {[%clk 00:34:36]} {[%emt 00:01:37]} Rf4 {[%clk
00:21:30]} {[%emt 00:02:34]} 42. Bg3 {[%clk 00:33:55]} {[%emt 00:01:11]} Rg4
{[%clk 00:18:50]} {[%emt 00:03:10]} 43. Bh4 {[%clk 00:33:46]} {[%emt 00:00:39]}
Rgf4 {[%clk 00:16:20]} {[%emt 00:03:01]} 44. Bg3 {[%clk 00:33:20]} {[%emt
00:00:56]} Rg8 {[%clk 00:15:25]} {[%emt 00:01:25]} 45. Rd1 {[%clk 00:18:54]}
{[%emt 00:14:55]} Rf7 {[%clk 00:07:00]} {[%emt 00:08:55]} 46. Bh4 {[%clk
00:19:20]} {[%emt 00:00:04]} Kg6 {[%clk 00:06:46]} {[%emt 00:00:44]} 47. Rf1
{[%clk 00:18:52]} {[%emt 00:00:57]} Rgf8 {[%clk 00:07:10]} {[%emt 00:00:06]} 48.
Kh2 {[%clk 00:18:56]} {[%emt 00:00:26]} Rf4 {[%clk 00:05:22]} {[%emt 00:02:19]}
49. Bg3 {[%clk 00:19:09]} {[%emt 00:00:17]} h4 {[%clk 00:04:22]} {[%emt
00:01:31]} 50. Bxf4 {[%clk 00:18:37]} {[%emt 00:01:01]} exf4 {[%clk 00:04:49]}
{[%emt 00:00:03]} 51. Rd1 {[%clk 00:18:39]} {[%emt 00:00:28]} Kf6 {[%clk
00:04:06]} {[%emt 00:01:14]} 52. Kh3 {[%clk 00:18:38]} {[%emt 00:00:30]} Rh8
{[%clk 00:02:59]} {[%emt 00:01:37]} 53. Kg4 {[%clk 00:18:13]} {[%emt 00:00:53]}
Ke5 {[%clk 00:03:13]} {[%emt 00:00:18]} 54. Rh1 {[%clk 00:15:46]} {[%emt
00:02:56]} Rg8+ {[%clk 00:03:41]} {[%emt 00:00:03]} 55. Kh5 {[%clk 00:14:46]}
{[%emt 00:01:29]} Be3 {[%clk 00:04:10]} {[%emt 00:00:02]} 56. Rd1 {[%clk
00:14:08]} {[%emt 00:01:08]} h3 {[%clk 00:04:00]} {[%emt 00:00:41]} 57. gxh3
{[%clk 00:10:54]} {[%emt 00:03:43]} Rg3 {[%clk 00:04:29]} {[%emt 00:00:01]} 58.
Rf1 {[%clk 00:11:15]} {[%emt 00:00:08]} Rxh3 {[%clk 00:03:51]} {[%emt
00:01:08]} 59. Kg4 {[%clk 00:10:46]} {[%emt 00:00:59]} Rg3+ {[%clk 00:04:17]}
{[%emt 00:00:03]} 60. Kh4 {[%clk 00:11:07]} {[%emt 00:00:10]} Bd4 {[%clk
00:03:31]} {[%emt 00:01:16]} 61. Rd2 {[%clk 00:07:41]} {[%emt 00:03:54]} Kf6
{[%clk 00:03:30]} {[%emt 00:00:33]} 62. Kh5 {[%clk 00:06:56]} {[%emt 00:01:14]}
Kg7 {[%clk 00:03:18]} {[%emt 00:00:43]} 63. Rfd1 {[%clk 00:01:23]} {[%emt
00:06:03]} Rxf3 {[%clk 00:03:04]} {[%emt 00:00:45]} 64. Kg4 {[%clk 00:01:12]}
{[%emt 00:00:40]} Rc3 {[%clk 00:01:52]} {[%emt 00:01:43]} 65. Rd3 {[%clk
00:00:53]} {[%emt 00:00:49]} Be5 {[%clk 00:00:51]} {[%emt 00:01:31]} 66. Kf3
{[%clk 00:00:34]} {[%emt 00:00:48]} Rc2 {[%clk 00:00:50]} {[%emt 00:00:32]} 67.
R3d2 {[%clk 00:00:34]} {[%emt 00:00:30]} Rc3+ {[%clk 00:01:00]} {[%emt
00:00:20]} 68. Rd3 {[%clk 00:00:48]} {[%emt 00:00:16]} Kf6 {[%clk 00:01:06]}
{[%emt 00:00:25]} 69. Rxc3 {[%clk 00:00:35]} {[%emt 00:00:43]} bxc3 {[%clk
00:01:34]} {[%emt 00:00:03]} 70. Rc1 {[%clk 00:00:58]} {[%emt 00:00:06]} Ke6
{[%clk 00:01:26]} {[%emt 00:00:38]} 71. Rc2 {[%clk 00:01:27]} {[%emt 00:00:01]}
Kf7 {[%clk 00:01:50]} {[%emt 00:00:06]} 72. Kg4 {[%clk 00:01:47]} {[%emt
00:00:10]} Ke6 {[%clk 00:01:50]} {[%emt 00:00:31]} 73. Kg5 {[%clk 00:02:09]}
{[%emt 00:00:06]} Kd7 {[%clk 00:01:51]} {[%emt 00:00:30]} 74. Kf5 {[%clk
00:01:52]} {[%emt 00:00:47]} Ke7 {[%clk 00:01:57]} {[%emt 00:00:24]} 75. Kg4
{[%clk 00:01:09]} {[%emt 00:01:12]} Kf6 {[%clk 00:02:01]} {[%emt 00:00:26]} 76.
Kf3 {[%clk 00:01:17]} {[%emt 00:00:22]} Kf7 {[%clk 00:01:34]} {[%emt 00:00:58]}
77. Rg2 {[%clk 00:01:30]} {[%emt 00:00:16]} Ke7 {[%clk 00:01:05]} {[%emt
00:00:59]} 78. Rc2 {[%clk 00:01:52]} {[%emt 00:00:08]} Ke6 {[%clk 00:01:14]}
{[%emt 00:00:21]} 79. Kg4 {[%clk 00:01:56]} {[%emt 00:00:26]} Kd7 {[%clk
00:00:51]} {[%emt 00:00:54]} 80. Kf3 {[%clk 00:02:07]} {[%emt 00:00:18]} Ke8
{[%clk 00:01:06]} {[%emt 00:00:15]} 81. Kg4 {[%clk 00:02:24]} {[%emt 00:00:13]}
Kf7 {[%clk 00:01:14]} {[%emt 00:00:22]} 82. Kf3 {[%clk 00:02:31]} {[%emt
00:00:22]} Ke6 {[%clk 00:00:57]} {[%emt 00:00:48]} 83. Kg4 {[%clk 00:02:26]}
{[%emt 00:00:35]} Bg7 {[%clk 00:00:43]} {[%emt 00:00:44]} 84. Kxf4 {[%clk
00:02:44]} {[%emt 00:00:11]} Bh6+ {[%clk 00:01:09]} {[%emt 00:00:05]} 85. Kf3
{[%clk 00:02:51]} {[%emt 00:00:22]} Bd2 {[%clk 00:01:21]} {[%emt 00:00:18]} 86.
Ke2 {[%clk 00:02:00]} {[%emt 00:01:21]} Ke5 {[%clk 00:01:48]} {[%emt 00:00:03]}
87. Kd3 {[%clk 00:01:05]} {[%emt 00:01:24]} Kf4 {[%clk 00:01:42]} {[%emt
00:00:37]} 88. Rxd2 {[%clk 00:01:08]} {[%emt 00:00:27]} cxd2 {[%clk 00:02:08]}
{[%emt 00:00:04]} 89. Kxd2 {[%clk 00:01:31]} {[%emt 00:00:07]} Kxe4 {[%clk
00:02:28]} {[%emt 00:00:10]} 90. Ke2 {[%clk 00:01:52]} {[%emt 00:00:08]} Kf4
{[%clk 00:02:14]} {[%emt 00:00:45]} 91. Kf2 {[%clk 00:01:40]} {[%emt 00:00:41]}
Ke4 {[%clk 00:02:31]} {[%emt 00:00:13]} 92. Ke2 {[%clk 00:02:04]} {[%emt
00:00:05]} 1/2-1/2

[Event "20th Rochefort Chess Festival - Masters"]
[Site "Rochefort, France"]
[Date "2022.02.12"]
[Round "1.2"]
[White "Delabbey, Florian"]
[Black "Galperin, Platon"]
[Result "0-1"]
[TimeControl "1h30 + [30'']"]
[WhiteElo "1999"]
[BlackElo "2522"]

1. d4 {[%clk 01:30:13]} {[%emt 00:00:46]} Nf6 {[%clk 01:30:26]} {[%emt
00:00:35]} 2. c4 {[%clk 01:30:16]} {[%emt 00:00:27]} e6 {[%clk 01:29:55]}
{[%emt 00:01:01]} 3. Nc3 {[%clk 01:29:43]} {[%emt 00:01:02]} Bb4 {[%clk
01:30:14]} {[%emt 00:00:12]} 4. e3 {[%clk 01:29:41]} {[%emt 00:00:32]} O-O
{[%clk 01:30:38]} {[%emt 00:00:07]} 5. Nge2 {[%clk 01:29:06]} {[%emt 00:01:04]}
c6 {[%clk 01:31:02]} {[%emt 00:00:06]} 6. a3 {[%clk 01:28:58]} {[%emt
00:00:38]} Ba5 {[%clk 01:31:28]} {[%emt 00:00:04]} 7. b4 {[%clk 01:19:00]}
{[%emt 00:10:28]} Bc7 {[%clk 01:31:36]} {[%emt 00:00:22]} 8. Ng3 {[%clk
01:19:18]} {[%emt 00:00:11]} d5 {[%clk 01:32:02]} {[%emt 00:00:05]} 9. cxd5
{[%clk 01:16:18]} {[%emt 00:03:30]} exd5 {[%clk 01:32:23]} {[%emt 00:00:09]} 10.
Bd3 {[%clk 01:16:35]} {[%emt 00:00:13]} Nbd7 {[%clk 01:32:01]} {[%emt
00:00:52]} 11. O-O {[%clk 01:15:38]} {[%emt 00:01:26]} Re8 {[%clk 01:32:07]}
{[%emt 00:00:25]} 12. b5 {[%clk 01:14:28]} {[%emt 00:01:40]} Nf8 {[%clk
01:24:58]} {[%emt 00:07:39]} 13. bxc6 {[%clk 01:03:43]} {[%emt 00:11:15]} bxc6
{[%clk 01:25:08]} {[%emt 00:00:20]} 14. Qc2 {[%clk 00:58:14]} {[%emt 00:05:59]}
h5 {[%clk 01:20:01]} {[%emt 00:05:36]} 15. Bf5 {[%clk 00:50:46]} {[%emt
00:07:58]} h4 {[%clk 01:19:42]} {[%emt 00:00:50]} 16. Bxc8 {[%clk 00:43:33]}
{[%emt 00:07:43]} hxg3 {[%clk 01:15:03]} {[%emt 00:05:09]} 17. Bb7 {[%clk
00:42:01]} {[%emt 00:02:03]} gxf2+ {[%clk 01:15:08]} {[%emt 00:00:25]} 18. Rxf2
{[%clk 00:40:52]} {[%emt 00:01:39]} Bxh2+ {[%clk 01:15:22]} {[%emt 00:00:16]}
19. Kxh2 {[%clk 00:38:52]} {[%emt 00:02:30]} Qc7+ {[%clk 01:15:17]} {[%emt
00:00:35]} 20. Kg1 {[%clk 00:38:34]} {[%emt 00:00:47]} Qxb7 {[%clk 01:15:42]}
{[%emt 00:00:06]} 21. Bd2 {[%clk 00:29:36]} {[%emt 00:09:28]} Re6 {[%clk
01:01:40]} {[%emt 00:14:33]} 22. Raf1 {[%clk 00:24:30]} {[%emt 00:05:35]} Rae8
{[%clk 01:01:23]} {[%emt 00:00:47]} 23. Qf5 {[%clk 00:23:49]} {[%emt 00:01:11]}
R8e7 {[%clk 00:50:56]} {[%emt 00:10:56]} 24. Na4 {[%clk 00:20:14]} {[%emt
00:04:05]} Ne4 {[%clk 00:49:33]} {[%emt 00:01:52]} 25. Bb4 {[%clk 00:17:40]}
{[%emt 00:03:05]} Rf6 {[%clk 00:49:32]} {[%emt 00:00:31]} 26. Qh5 {[%clk
00:15:13]} {[%emt 00:02:56]} Nxf2 {[%clk 00:49:05]} {[%emt 00:00:58]} 27. Bxe7
{[%clk 00:15:07]} {[%emt 00:00:37]} Qxe7 {[%clk 00:49:25]} {[%emt 00:00:10]} 28.
Rxf2 {[%clk 00:15:11]} {[%emt 00:00:25]} Qxe3 {[%clk 00:49:47]} {[%emt
00:00:07]} 0-1

[Event "20th Rochefort Chess Festival - Masters"]
[Site "Rochefort, France"]
[Date "2022.02.12"]
[Round "1.5"]
[White "Mirzoev, Emil"]
[Black "Le Bourhis, Dominique"]
[Result "1-0"]
[TimeControl "1h30 + [30'']"]
[WhiteElo "2460"]
[BlackElo "1990"]

1. d4 {[%clk 01:27:45]} {[%emt 00:03:14]} d5 {[%clk 01:30:11]} {[%emt
00:00:50]} 2. Bf4 {[%clk 01:27:47]} {[%emt 00:00:27]} e6 {[%clk 01:29:55]}
{[%emt 00:00:47]} 3. e3 {[%clk 01:28:03]} {[%emt 00:00:13]} c5 {[%clk
01:27:05]} {[%emt 00:03:20]} 4. Nf3 {[%clk 01:27:13]} {[%emt 00:01:19]} Nc6
{[%clk 01:25:57]} {[%emt 00:01:39]} 5. c3 {[%clk 01:26:17]} {[%emt 00:01:23]}
Nf6 {[%clk 01:26:03]} {[%emt 00:00:27]} 6. Nbd2 {[%clk 01:26:37]} {[%emt
00:00:10]} h6 {[%clk 01:22:02]} {[%emt 00:04:31]} 7. Bd3 {[%clk 01:25:35]}
{[%emt 00:01:27]} cxd4 {[%clk 01:19:43]} {[%emt 00:02:54]} 8. exd4 {[%clk
01:25:22]} {[%emt 00:00:43]} Bd6 {[%clk 01:20:03]} {[%emt 00:00:10]} 9. Bxd6
{[%clk 01:23:07]} {[%emt 00:02:46]} Qxd6 {[%clk 01:18:23]} {[%emt 00:02:08]} 10.
Qe2 {[%clk 01:23:32]} {[%emt 00:00:05]} a6 {[%clk 01:10:15]} {[%emt 00:08:40]}
11. Ne5 {[%clk 01:21:58]} {[%emt 00:02:03]} O-O {[%clk 00:58:30]} {[%emt
00:12:15]} 12. O-O {[%clk 01:20:19]} {[%emt 00:02:09]} Bd7 {[%clk 00:56:27]}
{[%emt 00:02:33]} 13. f4 {[%clk 01:19:50]} {[%emt 00:01:00]} Na7 {[%clk
00:55:21]} {[%emt 00:01:36]} 14. a4 {[%clk 01:19:08]} {[%emt 00:01:12]} b5
{[%clk 00:53:20]} {[%emt 00:02:31]} 15. g4 {[%clk 01:17:28]} {[%emt 00:02:10]}
bxa4 {[%clk 00:45:16]} {[%emt 00:08:34]} 16. g5 {[%clk 01:17:51]} {[%emt
00:00:06]} Ne8 {[%clk 00:39:00]} {[%emt 00:06:46]} 17. gxh6 {[%clk 01:06:50]}
{[%emt 00:11:33]} Bb5 {[%clk 00:37:21]} {[%emt 00:02:08]} 18. hxg7 {[%clk
01:03:29]} {[%emt 00:03:51]} Nxg7 {[%clk 00:37:31]} {[%emt 00:00:19]} 19. Kh1
{[%clk 01:03:33]} {[%emt 00:00:26]} Bxd3 {[%clk 00:27:19]} {[%emt 00:10:42]} 20.
Qxd3 {[%clk 01:03:52]} {[%emt 00:00:10]} f6 {[%clk 00:27:21]} {[%emt 00:00:28]}
21. Ng6 {[%clk 01:03:30]} {[%emt 00:00:52]} Rf7 {[%clk 00:19:12]} {[%emt
00:08:39]} 22. Qh3 {[%clk 01:02:37]} {[%emt 00:01:10]} 1-0

[Event "20th Rochefort Chess Festival - Masters"]
[Site "Rochefort, France"]
[Date "2022.02.12"]
[Round "1.1"]
[White "Bauer, Christian"]
[Black "Maupin, Valerie"]
[Result "1-0"]
[TimeControl "1h30 + [30'']"]
[WhiteElo "2613"]
[BlackElo "2007"]

1. c4 {[%clk 01:30:57]} {[%emt 00:00:02]} Nf6 {[%clk 01:30:41]} {[%emt
00:00:19]} 2. Nc3 {[%clk 01:31:20]} {[%emt 00:00:07]} e6 {[%clk 01:31:05]}
{[%emt 00:00:06]} 3. e4 {[%clk 01:31:09]} {[%emt 00:00:40]} d5 {[%clk
01:31:21]} {[%emt 00:00:14]} 4. e5 {[%clk 01:31:12]} {[%emt 00:00:27]} d4
{[%clk 01:31:38]} {[%emt 00:00:13]} 5. exf6 {[%clk 01:31:26]} {[%emt 00:00:17]}
dxc3 {[%clk 01:31:57]} {[%emt 00:00:11]} 6. bxc3 {[%clk 01:31:47]} {[%emt
00:00:08]} Qxf6 {[%clk 01:32:11]} {[%emt 00:00:16]} 7. Nf3 {[%clk 01:31:33]}
{[%emt 00:00:43]} b6 {[%clk 01:28:23]} {[%emt 00:04:18]} 8. d4 {[%clk
01:27:17]} {[%emt 00:04:46]} Bb7 {[%clk 01:27:07]} {[%emt 00:01:47]} 9. h4
{[%clk 01:23:25]} {[%emt 00:04:22]} Bd6 {[%clk 01:17:10]} {[%emt 00:10:26]} 10.
Bd3 {[%clk 01:14:00]} {[%emt 00:09:54]} Bf4 {[%clk 01:07:03]} {[%emt 00:10:38]}
11. Ba3 {[%clk 01:04:39]} {[%emt 00:09:51]} c5 {[%clk 00:47:45]} {[%emt
00:19:48]} 12. O-O {[%clk 01:01:42]} {[%emt 00:03:27]} Nd7 {[%clk 00:45:31]}
{[%emt 00:02:45]} 13. Qe2 {[%clk 00:59:45]} {[%emt 00:02:26]} O-O {[%clk
00:37:34]} {[%emt 00:08:28]} 14. g3 {[%clk 00:55:28]} {[%emt 00:04:46]} Bh6
{[%clk 00:35:01]} {[%emt 00:03:03]} 15. Nh2 {[%clk 00:53:00]} {[%emt 00:02:58]}
Rfe8 {[%clk 00:25:51]} {[%emt 00:09:41]} 16. Ng4 {[%clk 00:49:47]} {[%emt
00:03:42]} Qf3 {[%clk 00:26:14]} {[%emt 00:00:08]} 17. Qxf3 {[%clk 00:50:10]}
{[%emt 00:00:06]} Bxf3 {[%clk 00:26:39]} {[%emt 00:00:04]} 18. Nxh6+ {[%clk
00:50:30]} {[%emt 00:00:10]} gxh6 {[%clk 00:27:05]} {[%emt 00:00:04]} 19. Rfe1
{[%clk 00:50:13]} {[%emt 00:00:46]} Rac8 {[%clk 00:20:35]} {[%emt 00:07:01]} 20.
Re3 {[%clk 00:48:40]} {[%emt 00:02:03]} Bb7 {[%clk 00:20:27]} {[%emt 00:00:38]}
21. Rae1 {[%clk 00:47:16]} {[%emt 00:01:53]} Nf6 {[%clk 00:20:11]} {[%emt
00:00:46]} 22. dxc5 {[%clk 00:46:38]} {[%emt 00:01:08]} bxc5 {[%clk 00:20:23]}
{[%emt 00:00:18]} 23. Rb1 {[%clk 00:41:38]} {[%emt 00:05:28]} Ba6 {[%clk
00:19:23]} {[%emt 00:01:33]} 24. Re5 {[%clk 00:41:16]} {[%emt 00:00:51]} Red8
{[%clk 00:19:24]} {[%emt 00:00:28]} 25. Bf1 {[%clk 00:41:09]} {[%emt 00:00:37]}
Nd7 {[%clk 00:13:50]} {[%emt 00:06:05]} 26. Rh5 {[%clk 00:39:53]} {[%emt
00:01:45]} Kg7 {[%clk 00:09:50]} {[%emt 00:04:30]} 27. Bc1 {[%clk 00:35:48]}
{[%emt 00:04:35]} Rb8 {[%clk 00:09:43]} {[%emt 00:00:38]} 28. Ra1 {[%clk
00:33:56]} {[%emt 00:02:22]} Bb7 {[%clk 00:02:36]} {[%emt 00:07:37]} 29. Be2
{[%clk 00:29:34]} {[%emt 00:04:52]} f6 {[%clk 00:02:01]} {[%emt 00:01:05]} 30.
Bxh6+ {[%clk 00:29:20]} {[%emt 00:00:44]} Kg6 {[%clk 00:01:05]} {[%emt
00:01:26]} 31. Bf4 {[%clk 00:27:18]} {[%emt 00:02:31]} Rbc8 {[%clk 00:01:13]}
{[%emt 00:00:22]} 32. g4 {[%clk 00:25:27]} {[%emt 00:02:21]} Nb6 {[%clk
00:01:13]} {[%emt 00:00:31]} 33. Rh6+ {[%clk 00:25:25]} {[%emt 00:00:32]} Kg7
{[%clk 00:01:34]} {[%emt 00:00:09]} 34. g5 {[%clk 00:25:41]} {[%emt 00:00:14]}
fxg5 {[%clk 00:00:46]} {[%emt 00:01:17]} 35. hxg5 {[%clk 00:26:04]} {[%emt
00:00:07]} Be4 {[%clk 00:00:38]} {[%emt 00:00:38]} 36. Rxe6 {[%clk 00:24:18]}
{[%emt 00:02:16]} Bg6 {[%clk 00:00:34]} {[%emt 00:00:34]} 37. Re7+ {[%clk
00:23:47]} {[%emt 00:01:00]} Kg8 {[%clk 00:00:34]} {[%emt 00:00:31]} 38. Bg4
{[%clk 00:22:52]} {[%emt 00:01:24]} Rc6 {[%clk 00:00:46]} {[%emt 00:00:19]} 39.
Bf3 {[%clk 00:21:24]} {[%emt 00:01:58]} Rcc8 {[%clk 00:00:49]} {[%emt
00:00:27]} 40. Bb7 {[%clk 00:18:52]} {[%emt 00:03:01]} Re8 {[%clk 00:00:55]}
{[%emt 00:00:24]} 41. Rae1 {[%clk 00:19:13]} {[%emt 00:00:08]} Rxe7 {[%clk
00:01:00]} {[%emt 00:00:25]} 42. Rxe7 {[%clk 00:19:37]} {[%emt 00:00:05]} Rd8
{[%clk 00:01:06]} {[%emt 00:00:25]} 43. Bc6 {[%clk 00:19:12]} {[%emt 00:00:55]}
Nxc4 {[%clk 00:00:47]} {[%emt 00:00:50]} 44. Rxa7 {[%clk 00:19:23]} {[%emt
00:00:19]} Nd6 {[%clk 00:00:36]} {[%emt 00:00:40]} 45. a4 {[%clk 00:16:53]}
{[%emt 00:03:00]} Nf5 {[%clk 00:00:31]} {[%emt 00:00:35]} 46. Ra8 {[%emt
00:02:08]} 1-0

[Event "20th Rochefort Chess Festival - Masters"]
[Site "Rochefort, France"]
[Date "2022.02.12"]
[Round "1.3"]
[White "Demuth, Adrien"]
[Black "Breuil, Tristan"]
[Result "1-0"]
[TimeControl "1h30 + [30'']"]
[WhiteElo "2489"]
[BlackElo "1995"]

1. Nf3 {[%clk 01:30:57]} {[%emt 00:00:02]} Nf6 {[%clk 01:30:54]} {[%emt
00:00:06]} 2. g3 {[%clk 01:31:23]} {[%emt 00:00:04]} d5 {[%clk 01:31:18]}
{[%emt 00:00:06]} 3. Bg2 {[%clk 01:31:47]} {[%emt 00:00:05]} c5 {[%clk
01:31:19]} {[%emt 00:00:30]} 4. O-O {[%clk 01:32:06]} {[%emt 00:00:10]} Nc6
{[%clk 01:31:36]} {[%emt 00:00:13]} 5. d4 {[%clk 01:32:14]} {[%emt 00:00:22]}
Bg4 {[%clk 01:26:40]} {[%emt 00:05:26]} 6. Ne5 {[%clk 01:31:27]} {[%emt
00:01:17]} e6 {[%clk 01:15:18]} {[%emt 00:11:52]} 7. Nxg4 {[%clk 01:21:22]}
{[%emt 00:10:35]} Nxg4 {[%clk 01:15:37]} {[%emt 00:00:10]} 8. e4 {[%clk
01:21:41]} {[%emt 00:00:11]} Nf6 {[%clk 01:15:59]} {[%emt 00:00:09]} 9. exd5
{[%clk 01:21:20]} {[%emt 00:00:52]} Nxd5 {[%clk 01:09:51]} {[%emt 00:06:38]} 10.
c4 {[%clk 01:15:16]} {[%emt 00:06:34]} Ndb4 {[%clk 00:47:38]} {[%emt 00:22:43]}
11. a3 {[%clk 01:02:49]} {[%emt 00:12:58]} Na6 {[%clk 00:47:44]} {[%emt
00:00:23]} 12. d5 {[%clk 01:00:36]} {[%emt 00:02:43]} exd5 {[%clk 00:47:29]}
{[%emt 00:00:45]} 13. cxd5 {[%clk 01:00:32]} {[%emt 00:00:34]} Nd4 {[%clk
00:44:56]} {[%emt 00:03:03]} 14. Re1+ {[%clk 00:57:56]} {[%emt 00:03:06]} Be7
{[%clk 00:44:56]} {[%emt 00:00:30]} 15. d6 {[%clk 00:50:20]} {[%emt 00:08:06]}
Qxd6 {[%clk 00:45:15]} {[%emt 00:00:11]} 16. Bxb7 {[%clk 00:50:39]} {[%emt
00:00:12]} Rb8 {[%clk 00:40:52]} {[%emt 00:04:52]} 17. Bf4 {[%clk 00:49:43]}
{[%emt 00:01:26]} Qb6 {[%clk 00:37:42]} {[%emt 00:03:40]} 18. Bxa6 {[%clk
00:48:55]} {[%emt 00:01:19]} Rd8 {[%clk 00:37:20]} {[%emt 00:00:51]} 19. Bc4
{[%clk 00:45:35]} {[%emt 00:03:50]} Qg6 {[%clk 00:33:52]} {[%emt 00:03:58]} 20.
Nc3 {[%clk 00:42:50]} {[%emt 00:03:15]} Nc2 {[%clk 00:32:07]} {[%emt 00:02:16]}
21. Bb5+ {[%clk 00:42:42]} {[%emt 00:00:38]} Kf8 {[%clk 00:32:33]} {[%emt
00:00:03]} 22. Qxd8+ {[%clk 00:43:08]} {[%emt 00:00:04]} Bxd8 {[%clk 00:33:02]}
{[%emt 00:00:01]} 23. Re8# {[%emt 00:00:10]} 1-0

[ePGN "0.1;DGT LiveChess/2.2.5"]